[Event "GER-ch Youth-ODJM 2022"]
[Site "Willingen"]
[Date "2022.06.05"]
[Round "1.12"]
[White "Andrade, Ruben"]
[Black "Bock, Leonas"]
[Result "1-0"]
[ECO "B20"]
[WhiteElo "1694"]
[BlackElo "1352"]
[Annotator "NA RC COMBH"]
[PlyCount "91"]
[EventDate "2022.06.05"]
[EventType "swiss"]
[EventRounds "9"]
[EventCountry "GER"]
[SourceTitle "playchess.com"]
[Source "ChessBase"]
[SourceQuality "1"]
[TimeControl "40/4500+30:900+30"]

1. e4 {[%emt 0:00:00]} c5 {[%emt 0:00:00]} 2. c4 {[%emt 0:00:00]} Nc6 {[%emt 0:00:00]} 3. Nc3 {[%emt 0:00:00]} g6 {[%emt 0:00:00]} 4. g3 {[%emt 0:00:00]} Bg7 {[%emt 0:00:00]} 5. Bg2 {[%emt 0:00:00]} d6 {[%emt 0:00:00]} 6. Nge2 {[%emt 0:00:00]} e5 {[%emt 0:00:00]} 7. O-O {[%emt 0:00:00]} Nge7 {[%emt 0:00:00]} 8. d3 {[%emt 0:00:00]} O-O {[%emt 0:00:00]} 9. Rb1 {[%emt 0:00:00]} Bd7 {[%emt 0:00:07]} 10. a3 {[%emt 0:00:00]} Rb8 {[%emt 0:03:23]} 11. b4 $11 {[%emt 0:00:00]} b6 {[%emt 0:02:30]} 12. Bd2 {[%emt 0:00:00]} Nd4 {[%emt 0:08:30]} 13. Nxd4 {[%emt 0:00:00]} cxd4 {[%emt 0:05:47]} 14. Nd5 {[%emt 0:00:57]} Nxd5 {[%emt 0:00:41]} 15. cxd5 {[%emt 0:01:31]} Bb5 {[%emt 0:02:39]} 16. Qb3 {[%emt 0:04:34]} Qd7 {[%emt 0:02:51]} 17. Rfc1 {[%emt 0:08:45]} f5 {[%emt 0:05:59]} 18. f3 {[%emt 0:22:31]} Ba4 {[%emt 0:15:17]} 19. Qb2 {[%emt 0:03:33]} Bb5 {[%emt 0:00:48]} 20. Qb3 {[%emt 0:00:06]} Ba4 {[%emt 0:00:31]} 21. Qa2 {[%emt 0:00:59]} Bb5 {[%emt 0:01:08]} 22. Rb3 {[%emt 0:02:30]} Rbc8 {[%emt 0:02:30]} 23. Qb1 {[%emt 0:07:04]} Rxc1+ 24. Bxc1 {[%emt 0:00:25]} Rc8 {[%emt 0:02:56]} 25. Bd2 {[%emt 0:03:44]} Ba4 {[%emt 0:04:40]} 26. Rb2 {[%emt 0:00:31]} Rc7 {[%emt 0:01:22]} 27. Bf1 {[%emt 0:06:34]} Qc8 {[%emt 0:01:27]} 28. Be2 {[%emt 0:05:15]} Bc2 {[%emt 0:03:39]} 29. Qa2 {[%emt 0:01:50]} Ba4 {[%emt 0:02:40]} 30. Qb1 {[%emt 0:11:29]} Bc2 {[%emt 0:00:28]} 31. Qf1 {[%emt 0:00:38]} Qa6 {[%emt 0:12:37]} 32. Qc1 {[%emt 0:02:37]} Qc8 {[%emt 0:00:49]} 33. Qa1 {[%emt 0:01:05]} Ba4 {[%emt 0:03:16]} 34. Bd1 {[%emt 0:03:26]} Qa6 {[%emt 0:00:15]} 35. Be2 {[%emt 0:02:19]} Qc8 {[%emt 0:01:10]} 36. Bd1 {[%emt 0:00:26]} Qa6 {[%emt 0:01:06]} 37. Be2 {[%emt 0:00:22]} Qc8 {[%emt 0:01:41]} 38. Rb1 {[%emt 0:00:44]} Rc2 {[%emt 0:01:11]} 39. Rc1 {[%emt 0:00:13]} Qa6 {[%emt 0:01:16]} 40. Rxc2 {[%emt 0:00:48]} Bxc2 {[%emt 0:00:08]} 41. Qb2 {[%emt 0:00:00]} Qc8 {[%emt 0:00:00]} 42. Qc1 {[%emt 0:00:00]} Qa6 {[%emt 0:00:00]} 43. Qxc2 {[%emt 0:00:00]} Qxa3 {[%emt 0:00:00]} 44. Qc8+ {[%emt 0:00:00]} Bf8 {[%emt 0:00:00]} 45. Bh6 {[%emt 0:00:00]} Qc1+ {[%emt 0:00:00]} 46. Bxc1 {[%emt 0:00:00]} 1-0

[Event "GER-ch Youth-ODJM 2022"]
[Site "Willingen"]
[Date "2022.06.05"]
[Round "1.13"]
[White "Gallasch, Jonas"]
[Black "Kamp, Aaron"]
[Result "0-1"]
[ECO "B21"]
[WhiteElo "2044"]
[BlackElo "1790"]
[Annotator "TA"]
[PlyCount "146"]
[EventDate "2022.06.05"]
[EventType "swiss"]
[EventRounds "9"]
[EventCountry "GER"]
[SourceTitle "playchess.com"]
[Source "ChessBase"]
[SourceQuality "1"]
[TimeControl "40/4500+30:900+30"]

{[%evp 14,146,-14,-25,-29,-43,-43,-37,-40,-50,-47,-137,-129,-129,-113,-152,-148,-262,-127,-110,-104,-85,-72,-134,-16,-26,-3,-57,-9,-13,-7,-27,0,-20,-12,-18,0,0,0,0,0,0,0,0,0,0,0,-18,-18,-18,-21,-33,-45,-146,-149,-151,-136,-191,-151,-167,-151,-154,-151,-151,-151,-151,-108,-108,-108,-108,-108,-125,-110,-151,-151,-151,-151,-151,-151,-151,-94,-93,-91,-101,-101,-272,-272,-182,-182,-279,-210,-400,-400,-4610,-1258,-10397,-400,-400,-400,-309,-160,-29978,-29979,-29979,-29980,-29980,-29981,-29981,-29982,-29982,-29983,-29983,-29984,-29984,-29985,-29985,-29986,-29986,-29987,-29987,-29988,-29989,-29990,-29990,-29991,-29991,-29990,-29991,-29992,-29992,-29991,-29992,-29992,-29992,-29993]} 1. e4 {[%emt 0:00:00]} c5 {[%emt 0:00:00]} 2. d4 {[%emt 0:00:00]} cxd4 {[%emt 0:00:00]} 3. c3 {[%emt 0:00:00]} dxc3 {[%emt 0:00:00]} 4. Nxc3 {[%emt 0:00:00]} Nc6 {[%emt 0:00:00]} 5. Nf3 {[%emt 0:00:00]} e6 {[%emt 0:00:00]} 6. Bc4 {[%emt 0:00:00]} a6 {[%emt 0:00:00]} 7. O-O {[%emt 0:00:00]} Nge7 {[%emt 0:00:00]} 8. Bg5 {[%emt 0:00:00]} h6 {[%emt 0:00:00] B21: Sicilian: 2 f4 and Morra Gambit.} 9. Bh4 {[%emt 0:00:00]} g5 {[%emt 0:00:00]} 10. Bg3 {[%emt 0:00:00][%cal Oc3d5]} Ng6 {[%emt 0:00:00] Black is slightly better.} 11. Re1 {[%emt 0:00:00][%cal Oc4d5]} d6 {[%emt 0:00:00]} 12. Qd2 {[%emt 0:05:26] [#]} (12. h3 $15) 12... g4 $146 {[%emt 0:05:30]} ({Predecessor:} 12... h5 13. Rad1 h4 14. Bxd6 Bxd6 15. Qxd6 Qxd6 16. Rxd6 Ke7 17. Rxc6 bxc6 18. Nxg5 Ne5 {1-0 (45) Jobava,B (2582)-Baches Garcia,G (2329) Chess.com INT 2021}) 13. Nd4 {[%emt 0:02:15]} Nce5 {[%emt 0:02:07]} 14. Be2 {[%emt 0:07:36]} h5 $1 {[%emt 0:07:15]} 15. f4 {[%emt 0:08:14]} (15. Nc2 $17) 15... gxf3 {[%emt 0:02:36]} (15... Bh6 $19 {has better winning chances.} 16. h4 gxh3 17. gxh3 Nxf4 18. Bxf4 Qh4 $1 19. Bb5+ (19. Bxh6 $2 Rg8+ 20. Bg4 Qxh3 $19) 19... axb5 20. Bxh6 Rg8+ 21. Kh1 Qxh3+ 22. Qh2 Qxh2+ 23. Kxh2 Ng4+ 24. Kh1 Nxh6 25. Ndxb5 Ke7) 16. Nxf3 $17 {[%emt 0:01:48]} Bh6 {[%emt 0:12:36]} 17. Qd4 {[%emt 0:08:00][%cal Rf3e5]} Bg7 {[%emt 0:09:31]} 18. Nxe5 {[%emt 0:03:15] [#]} (18. Qb4 $142) 18... Bxe5 {[%emt 0:05:38]} (18... h4 $1 $17 {[%cal Rh4g3]} 19. Qa4+ b5 20. Nxb5 Nxe5 21. Nxd6+ (21. Bxe5 Bxe5 22. Nxd6+ Kf8 $14) 21... Kf8 22. Bxe5 Bxe5) 19. Bxe5 $11 {[%emt 0:01:47]} dxe5 {[%emt 0:00:10]} (19... Nxe5 {feels hotter.} 20. Rf1 h4 21. Rad1 b5) 20. Qxd8+ {[%emt 0:10:04]} Kxd8 {[%emt 0:00:08]} 21. Na4 $1 {[%emt 0:01:36]} b5 {[%emt 0:07:05]} 22. Nc5 {[%emt 0:05:19]} Rb8 {[%emt 0:05:16]} 23. b4 {[%emt 0:06:13]} Nf4 {[%emt 0:01:59]} 24. Bf1 {[%emt 0:02:43]} Rg8 {[%emt 0:01:37]} 25. Kf2 {[%emt 0:02:15]} h4 {[%emt 0:01:51]} 26. a4 {[%emt 0:01:16]} bxa4 $1 {[%emt 0:01:50]} 27. Rxa4 {[%emt 0:00:08]} Ke7 {[%emt 0:00:20]} 28. g3 {[%emt 0:03:09]} hxg3+ {[%emt 0:01:36]} 29. hxg3 {[%emt 0:00:09]} Nh5 {[%emt 0:00:52]} 30. Re3 {[%emt 0:00:36]} Nf6 {[%emt 0:01:26] Hoping for ...Ng4+.} 31. Rea3 {[%emt 0:01:50]} Bd7 $36 {[%emt 0:06:27][%mdl 2048] Black has some pressure.} 32. Nxd7 {[%emt 0:00:58]} Kxd7 {[%emt 0:00:17]} 33. Bg2 {[%emt 0:06:38]} (33. Kf3 $15) 33... Rgc8 $17 {[%emt 0:01:05]} 34. Ke3 {[%emt 0:05:13]} Rc4 {[%emt 0:01:56]} 35. Rb3 {[%emt 0:00:44]} (35. Bf3 $17 {is a better defense.}) 35... Rb6 {[%emt 0:01:24]} 36. Kd3 {[%emt 0:01:53]} Rd4+ {[%emt 0:00:34]} 37. Ke3 {[%emt 0:00:39]} Ke7 {[%emt 0:00:31]} 38. Bf3 {[%emt 0:01:27]} Nd7 {[%emt 0:03:12] Strongly threatening ...Nc5. Black is more active.} 39. Ra5 {[%emt 0:01:41] Prevents Nc5.} Rdxb4 {[%emt 0:01:27]} 40. Rxb4 {[%emt 0:00:19]} Rxb4 {[%emt 0:00:05]} 41. Rxa6 {[%emt 0:17:02][%mdl 4096] Endgame KRB-KRN} Rb3+ {[%emt 0:17:09]} 42. Kf2 {[%emt 0:00:00]} Nc5 {[%emt 0:00:00]} 43. Ra7+ {[%emt 0:00:00]} Kf6 {[%emt 0:00:00]} 44. Ra5 {[%emt 0:00:00]} Rc3 {[%emt 0:00:00]} 45. Ra7 {[%emt 0:00:00]} Kg6 {[%emt 0:00:00]} 46. Ra8 {[%emt 0:00:00]} f5 {[%emt 0:00:00]} ({Better is} 46... Nb3 47. Rg8+ Kh7) 47. exf5+ {[%emt 0:00:00]} exf5 {[%emt 0:00:00]} 48. Rg8+ {[%emt 0:00:00]} Kf7 {[%emt 0:00:00]} 49. Rg5 $2 {[%emt 0:00:00] Now White is beyond hope.} (49. Bd5+ $17 Ne6 50. Ra8) 49... Kf6 $19 {[%emt 0:00:00]} 50. Rg8 {[%emt 0:00:00]} e4 {[%emt 0:00:00]} 51. Be2 {[%emt 0:00:00]} (51. Rf8+ {keeps fighting.} Ke5 52. Re8+ Ne6 53. Bh5) 51... Ne6 {[%emt 0:00:00]} 52. Ra8 $2 {[%emt 0:00:00]} (52. Bh5 {was forced.}) 52... Nd4 {[%emt 0:00:00] Threatens to win with ...e3+.} 53. Ra2 {[%emt 0:00:00]} (53. Bd1 $142) 53... Kg5 {[%emt 0:00:00]} (53... Nxe2 $142 54. Rxe2 Kg5) 54. Bd1 {[%emt 0:01:08]} Rd3 {[%emt 0:00:00]} (54... e3+ $142 55. Kg2 Rc1) 55. Ra1 {[%emt 0:01:11]} e3+ {[%emt 0:02:33]} 56. Ke1 {[%emt 0:01:36] [#]} Rd2 {[%emt 0:01:38]} (56... Kf6 $1 $19 {And now ...Ke5 would win.} 57. Ra8 Rc3) 57. Ra3 $2 {[%emt 0:01:07] [#]} (57. Ra4 $17) 57... Rxd1+ $1 {[%emt 0:00:09][%mdl 512] Black mates.} 58. Kxd1 {[%emt 0:00:08] KR-KN} e2+ {[%emt 0:00:03]} ({Worse is} 58... f4 59. gxf4+ Kxf4 60. Ra8 $11) 59. Kd2 {[%emt 0:00:46]} e1=Q+ {[%emt 0:00:08][%mdl 64] Deflection, Decoy} 60. Kxe1 {[%emt 0:00:11]} Nc2+ {[%emt 0:00:04]} 61. Kf2 {[%emt 0:00:22]} Nxa3 {[%emt 0:00:31] KN-KP} 62. Kf3 {[%emt 0:00:35]} Nc4 {[%emt 0:00:11]} 63. Kf2 {[%emt 0:00:15]} Kg4 {[%emt 0:00:08]} 64. Kg2 {[%emt 0:00:09]} Nd6 {[%emt 0:00:04]} 65. Kf2 {[%emt 0:00:11]} Ne4+ {[%emt 0:00:04]} 66. Kg2 {[%emt 0:00:07]} Nxg3 {[%emt 0:00:06]} 67. Kf2 {[%emt 0:00:07]} f4 {[%emt 0:00:05][%cal Bf5f4,Bf4f3,Bf3f2][%mdl 32]} 68. Kg2 {[%emt 0:00:07]} Ne4 {[%emt 0:00:06][%cal Bg3e4,Be4d2,Bd2c4][%mdl 32]} 69. Kg1 {[%emt 0:00:07]} Kg3 {[%emt 0:00:07]} 70. Kf1 {[%emt 0:00:05]} f3 {[%emt 0:00:07]} 71. Kg1 {[%emt 0:00:05]} Nd2 {[%emt 0:00:08]} 72. Kh1 {[%emt 0:00:08]} Nc4 {[%emt 0:00:13]} 73. Kg1 {[%emt 0:00:07]} f2+ {[%emt 0:00:10] Weighted Error Value: White=0.67/Black=0.42} 0-1

[Event "GER-ch Youth-ODJM 2022"]
[Site "Willingen"]
[Date "2022.06.05"]
[Round "1.14"]
[White "Weigand, Anton"]
[Black "Gerlach, Felix"]
[Result "1/2-1/2"]
[ECO "A20"]
[WhiteElo "1866"]
[BlackElo "2072"]
[Annotator "TA"]
[PlyCount "116"]
[EventDate "2022.06.05"]
[EventType "swiss"]
[EventRounds "9"]
[EventCountry "GER"]
[SourceTitle "playchess.com"]
[Source "ChessBase"]
[SourceQuality "1"]
[TimeControl "40/4500+30:900+30"]

{[%evp 9,116,14,44,39,66,45,53,45,51,41,43,30,29,26,30,13,46,46,66,68,72,83,78,46,43,42,81,94,93,91,129,114,139,141,150,140,143,154,136,135,185,185,178,190,178,178,201,196,188,147,138,100,327,319,318,33,22,26,36,29,27,24,37,31,17,31,75,75,75,75,75,75,75,75,76,76,103,42,79,42,71,42,42,10,10,10,10,0,8,0,0,-7,-7,0,-8,-8,-8,-8,-8,-8,-8,-8,0,-13,-8,-13,0,-13,0]} 1. c4 {[%emt 0:00:00]} e5 {[%emt 0:00:00]} 2. g3 {[%emt 0:00:00]} Nf6 {[%emt 0:00:00]} 3. Bg2 {[%emt 0:00:00]} Nc6 {[%emt 0:00:00]} 4. Nc3 {[%emt 0:00:00]} Bc5 {[%emt 0:00:00]} 5. e3 {[%emt 0:00:00]} Nb4 {[%emt 0:00:00]} 6. d3 $1 {[%emt 0:00:00] A25: English Opening vs King's Indian with ...Nc6 but without early d3.} a5 {[%emt 0:02:44]} 7. a3 {[%emt 0:01:15]} Nc6 {[%emt 0:00:14]} 8. Nge2 {[%emt 0:07:12] White is slightly better.} d6 {[%emt 0:02:12]} 9. h3 {[%emt 0:03:41]} O-O {[%emt 0:00:41]} 10. O-O {[%emt 0:00:20]} Bb6 {[%emt 0:07:27] [#]} 11. Rb1 $146 {[%emt 0:03:07]} ({Predecessor:} 11. b3 Re8 12. Kh2 Ne7 13. d4 exd4 14. Nxd4 c6 15. Bb2 d5 16. cxd5 Nexd5 17. Nce2 {1-0 (60) Murshed,N (2448)-Mohammad,A (2200) Dhaka 2007}) 11... Ne7 {[%emt 0:04:15]} 12. e4 {[%emt 0:13:54]} c6 {[%emt 0:06:48]} 13. d4 {[%emt 0:10:41]} exd4 {[%emt 0:13:36]} 14. Nxd4 {[%emt 0:00:05]} Be6 {[%emt 0:01:41]} 15. Nxe6 {[%emt 0:09:54]} fxe6 {[%emt 0:01:25]} 16. Qb3 {[%emt 0:04:35]} (16. Na4 $5 {[%cal Ra4b6]}) 16... Nd7 {[%emt 0:10:07][%cal Bf6d7,Bd7c5,Bc5a4][%mdl 32]} 17. Na4 {[%emt 0:03:24]} Nc5 {[%emt 0:05:24]} 18. Qxb6 {[%emt 0:01:35]} Nxa4 {[%emt 0:00:19]} 19. Qe3 {[%emt 0:07:14]} (19. Qxb7 $2 Nc5 20. Qxa8 Qxa8 $19) 19... e5 {[%emt 0:05:16]} 20. Rd1 {[%emt 0:04:40]} Qc7 {[%emt 0:01:08]} 21. b3 {[%emt 0:02:15]} Nc5 {[%emt 0:01:21] [#]} 22. b4 $1 {[%emt 0:01:00]} axb4 {[%emt 0:01:17]} 23. axb4 {[%emt 0:00:57]} Ne6 {[%emt 0:08:07] [#]} 24. c5 $1 {[%emt 0:00:47]} dxc5 {[%emt 0:00:33]} (24... Rad8 $16 25. Bb2 Kh8) 25. Qb3 $18 {[%emt 0:00:48]} ({Don't take} 25. bxc5 $6 Kh8 26. h4 Rfd8 $16) 25... c4 {[%emt 0:01:20]} 26. Qxc4 {[%emt 0:00:22]} Rf6 {[%emt 0:02:03]} 27. Bg5 {[%emt 0:03:43]} Rg6 {[%emt 0:00:19]} 28. Be3 {[%emt 0:00:07]} Kh8 {[%emt 0:00:30]} 29. b5 {[%emt 0:00:53][%cal Bb4b5,Bb5b6][%mdl 32]} c5 {[%emt 0:03:02]} 30. b6 {[%emt 0:00:54] White is more active.} Qc6 {[%emt 0:00:31] [#]} (30... Qc8 $16 {keeps fighting.}) 31. Rd5 $1 {[%emt 0:01:36][%mdl 512]} Ra4 {[%emt 0:01:33]} 32. Qb5 {[%emt 0:02:25]} Qxb5 $14 {[%emt 0:00:35]} 33. Rxb5 {[%emt 0:00:04] Threatens to win with Rd7.} Nxd5 {[%emt 0:01:24]} 34. exd5 {[%emt 0:00:04]} Nd4 {[%emt 0:02:05]} 35. Rxc5 {[%emt 0:00:22][%cal Rc5c8]} Ra8 {[%emt 0:00:54] Prevents Rc8+.} 36. d6 {[%emt 0:02:27]} Rxd6 {[%emt 0:00:35]} 37. Rxe5 {[%emt 0:00:10]} Nc6 {[%emt 0:01:03]} 38. Bxc6 {[%emt 0:00:49]} Rxc6 $16 {[%emt 0:02:28][%mdl 4096] Endgame KRR-KRB} 39. Re7 {[%emt 0:00:14]} h6 {[%emt 0:01:01]} 40. Rxb7 {[%emt 0:00:28]} Ra1+ {[%emt 0:00:44]} 41. Kg2 {[%emt 0:15:42]} Rb1 {[%emt 0:00:00]} 42. h4 {[%emt 0:00:00]} Rc4 {[%emt 0:00:00]} 43. Kf3 {[%emt 0:00:00]} (43. Rc7 $16 Rbb4 44. Rd7 (44. Rxc4 Rxc4 45. Kf3 Kg8 $16)) 43... h5 {[%emt 0:00:00]} 44. Rd7 {[%emt 0:00:00]} (44. Rc7 $5 {[%cal Rc7c4]} Ra4 45. Bc5 $16 (45. b7 Rab4 $11)) 44... Rb3 {[%emt 0:02:57]} 45. Rd5 {[%emt 0:00:00]} g6 $1 {[%emt 0:00:46]} 46. Rd6 {[%emt 0:00:00]} (46. Rd7 $5 {[%cal Rf3e2]}) 46... Kg7 {[%emt 0:00:39] The position is equal.} 47. Ke2 {[%emt 0:00:00]} Rc2+ {[%emt 0:03:17]} 48. Kd1 {[%emt 0:00:00]} Ra2 {[%emt 0:01:04] aiming for ...Rb1+.} 49. Rd7+ {[%emt 0:00:00]} Kf6 {[%emt 0:01:33] White must now prevent ...Rb1+.} 50. Rd2 {[%emt 0:00:00]} Rxd2+ {[%emt 0:02:20]} 51. Kxd2 $11 {[%emt 0:00:09] KR-KB} Ke6 {[%emt 0:00:50]} 52. Kc2 {[%emt 0:00:24]} Rb5 {[%emt 0:00:26]} 53. Kc3 {[%emt 0:02:44]} Kd5 {[%emt 0:00:10]} 54. Kd3 {[%emt 0:01:03]} Rb2 {[%emt 0:01:17]} 55. Kc3 {[%emt 0:00:44]} Rb5 {[%emt 0:00:21]} 56. f3 {[%emt 0:01:31]} Rb1 {[%emt 0:03:17][%mdl 1024] Black has compensation.} 57. Kc2 {[%emt 0:00:52]} Rb5 {[%emt 0:01:11]} 58. Kc3 {[%emt 0:00:57]} Rb1 {[%emt 0:00:10] White really could win this.  Weighted Error Value: White=0.17 (very precise) /Black=0.13 (very precise)} 1/2-1/2

[Event "GER-ch Youth-ODJM 2022"]
[Site "Willingen"]
[Date "2022.06.05"]
[Round "1.15"]
[White "Schmitt, Daniel"]
[Black "Kruse, Victor"]
[Result "1/2-1/2"]
[ECO "D45"]
[WhiteElo "2141"]
[BlackElo "1733"]
[Annotator "TA"]
[PlyCount "78"]
[EventDate "2022.06.05"]
[EventType "swiss"]
[EventRounds "9"]
[EventCountry "GER"]
[SourceTitle "playchess.com"]
[Source "ChessBase"]
[SourceQuality "1"]
[TimeControl "40/4500+30:900+30"]

{[%evp 16,78,31,15,52,61,43,59,51,53,48,66,76,81,112,130,112,33,97,-39,-42,-25,-33,-49,-50,-56,-53,-58,-46,-106,-106,-106,-104,-107,-100,-97,-98,-98,-115,-116,-116,-105,-107,-116,-116,-262,-139,-139,-135,-139,-139,-265,-98,-106,-91,-93,0,0,0,0,0,0,0,0,0]} 1. d4 {[%emt 0:00:00]} d5 {[%emt 0:00:00]} 2. c4 {[%emt 0:00:00]} e6 {[%emt 0:00:00]} 3. Nf3 {[%emt 0:00:00]} Nf6 {[%emt 0:00:00]} 4. Nc3 {[%emt 0:00:00]} c6 {[%emt 0:00:00]} 5. e3 {[%emt 0:00:00]} Nbd7 {[%emt 0:00:00]} 6. Qc2 {[%emt 0:00:00]} Bd6 {[%emt 0:00:00]} 7. b3 {[%emt 0:00:00]} O-O {[%emt 0:00:00]} 8. Bd3 {[%emt 0:00:00]} Qe7 {[%emt 0:00:00]} 9. O-O {[%emt 0:00:00]} e5 {[%emt 0:00:00] D46: Semi-Slav: 5 e3 Nbd7 6 Bd3, Black avoids the Meran.} 10. cxd5 $1 {[%emt 0:09:10]} cxd5 {[%emt 0:00:00] Strongly threatening ...e4.} 11. e4 {[%emt 0:01:41]} exd4 {[%emt 0:07:09] White is slightly better.} 12. Nxd5 {[%emt 0:03:39]} Nxd5 {[%emt 0:04:07]} 13. exd5 {[%emt 0:00:32] [#] aiming for Re1.} h6 $146 {[%emt 0:04:03]} ({Predecessor:} 13... Ne5 14. Nxe5 Qxe5 15. Bxh7+ Kh8 16. f4 Qxd5 17. Be4 d3 18. Qxd3 Bc5+ 19. Kh1 Qxd3 20. Bxd3 {0-1 (58) Ashiku,F (2419)-Shirov,A (2664) Chess.com INT 2020}) 14. Re1 {[%emt 0:06:24]} Qf6 {[%emt 0:05:30]} 15. Bb2 {[%emt 0:01:24] White is more active.} Ne5 {[%emt 0:06:20]} 16. Nxd4 {[%emt 0:03:59]} ({Better is} 16. Bh7+ $16 Kh8 17. Nxd4) 16... Qg5 {[%emt 0:17:40]} ({Black should play} 16... Nxd3 $14 17. Qxd3 Bd7) 17. g3 {[%emt 0:17:09]} (17. Bh7+ $16 Kh8 18. g3) 17... Nxd3 $15 {[%emt 0:05:34]} 18. Qxd3 {[%emt 0:00:09]} Qxd5 {[%emt 0:00:20]} 19. Qc3 {[%emt 0:12:10][%cal Od4e6]} Be5 {[%emt 0:08:45]} 20. Qe3 {[%emt 0:02:07] [#]} Bh3 $1 {[%emt 0:07:07][%csl Gh3][%cal Rd5g2]} 21. Qe4 {[%emt 0:03:52] Prevents Qg2+.} Rfd8 {[%emt 0:03:17][%cal Re5d4]} 22. Rad1 {[%emt 0:04:51] [#]} (22. Qxd5 $15 Rxd5 23. Nc6 Bxb2 24. Ne7+ Kf8 25. Nxd5 Bxa1 26. Rxa1) 22... Rac8 $1 $40 {[%emt 0:05:04][%mdl 128] White is in trouble.} 23. Qxd5 {[%emt 0:12:20]} (23. Re2 Qxe4) 23... Rxd5 {[%emt 0:00:09]} 24. Rd2 {[%emt 0:00:17]} Rcd8 {[%emt 0:09:05][%cal Re5d4]} 25. Red1 {[%emt 0:00:16]} Bg4 {[%emt 0:01:10] This bishop pair is nice.} 26. f3 {[%emt 0:00:34] [#]} Bxf3 {[%emt 0:01:36]} 27. Nxf3 {[%emt 0:02:00]} Rxd2 {[%emt 0:00:06]} 28. Rxd2 {[%emt 0:00:08]} Rxd2 {[%emt 0:00:05]} 29. Bxe5 {[%emt 0:00:06]} Rxa2 {[%emt 0:00:04]} 30. h4 {[%emt 0:02:14] [#]} (30. Bc3 $17) 30... a6 {[%emt 0:00:27]} (30... a5 $1 $19 {...f6 is the strong threat.} 31. Kf1 f6) 31. Kf1 $17 {[%emt 0:02:15]} b5 {[%emt 0:00:53] White must now prevent ...a5.} 32. Nd4 {[%emt 0:01:32]} f6 {[%emt 0:00:55]} 33. Bd6 {[%emt 0:01:41]} (33. Bf4 $17) 33... Kf7 $2 {[%emt 0:00:18]} (33... Rd2 $19 {is more deadly.} 34. Nf5 a5) 34. b4 {[%emt 0:00:47]} g5 {[%emt 0:00:33]} 35. h5 {[%emt 0:00:20]} Rh2 {[%emt 0:01:13]} (35... a5 $17 {Hoping for ...Rd2.} 36. bxa5 Rxa5) 36. g4 $1 $11 {[%emt 0:00:33] The position is equal.} Rb2 {[%emt 0:01:28]} 37. Nf5 {[%emt 0:00:25]} Ke6 {[%emt 0:00:23][%cal Oa6a5]} 38. Bc5 {[%emt 0:00:24]} Kd5 {[%emt 0:00:22][%cal Oa6a5]} 39. Be7 {[%emt 0:01:27]} Ke6 {Weighted Error Value: White=0.21 (precise) /Black=0.24 (precise)} 1/2-1/2